Workbook

Sheet Sample
S1: Original | T1: PVC | U1: Add to Column | V1: Column | W1: End Result
B2: 2017 | H2: 6-4-5 Income Calculator | S2: Col 6 | T2: =H8 -> 847 | U2: =N8 -> 762.84 | V2: Col 6 | W2: =SUM(T2:U2) -> 1609.84
H3: Conference to Conference Planning | S3: Col 4 | T3: =H9 -> 1400 | U3: =SUM(N8:N9) -> 2288.52 | V3: Col 4 | W3: =SUM(T3:U3) -> 3688.52
H4: Name: | K4: Sample of a 6 Month Plan | S4: Col 5 | T4: =H10 -> 3200 | U4: =SUM(N8:N10) -> 3814.2 | V4: Col5 | W4: 7014.2
A5: Choose View in Order
B6: Maximize your 6-4-5 Income $1,500 | C6: PVC Goal Rounded | F6: PVC Targets | G6: Income Targets | H6: ….. Enter ….. Data | K6: Enter Your Plan | L6: Enter Timeline | O6: ….. PVC … Results | P6: VF Income Results | Q6: SC Income Results | S6: Trios | T6: 169.5 | U6: =SUM(T6/4) -> 42.375 | V6: 6776 | W6: 160 Trios
B7: Columns 6 4 5 | C7: Col 6-4-5 | D7: PC D DD VF | E7: A's, 1's, 2's | F7: A, 1, 2 | H7: Current Month Col 6-4-5 PVC | I7: PVC Needed | J7: Trios Needed | K7: Trios Per Month | L7: # of Months | M7: Resulting Trio Plan | N7: Resulting PVC | O7: Col 6-4-5 | P7: 6-4-5 Income | Q7: 6-4-5 Income | S7: =SUM(T7/42.3) -> 38.05768322 | T7: =SUM(H8+N8) -> 1609.84 | U7: =SUM(T7*0.14) -> 225.3776 | V7: =SUM(S7*9.75) -> 371.0624113 | W7: =SUM(U7:V7) -> 596.4400113 | X7: Col 6 VF
B8: Col 6 (Pers Total) | C8: 1600 | D8: PC's | E8: 40 A's | F8: 1694 | G8: 750 | H8: 847 | I8: =SUM(F8-H8) -> 847 | J8: =SUM(I8/40) -> 21.175 | K8: 3 | L8: 6 | M8: =SUM(L8*K8) -> 18 | N8: =SUM(M8*42.38) -> 762.84 | O8: =SUM(H8+N8) -> 1609.84 | P8: =SUM(U7:V7) -> 596.4400113 | Q8: =SUM(U8:V8) -> 725.2272113 | S8: =S7 -> 38.05768322 | T8: =T7 -> 1609.84 | U8: =SUM(T8*0.22) -> 354.1648 | V8: =SUM(S8*9.75) -> 371.0624113 | W8: =SUM(U8:V8) -> 725.2272113 | X8: Col 6 SC
B9: Col 4 (PB) | C9: 3200 | D9: HLP's | E9: 40 1's | F9: 1694 | G9: 350 | H9: 1400 | I9: =SUM(F9-(H9-H8)) -> 1141 | J9: =SUM(I9/40) -> 28.525 | K9: 6 | L9: 6 | M9: =SUM(L9*K9) -> 36 | N9: =SUM(M9*42.38) -> 1525.68 | O9: =SUM(H9+N8+N9) -> 3688.52 | P9: =SUM(T9*0.13) -> 270.2284 | Q9: =SUM(T9*0.21) -> 436.5228 | S9: Col 4 | T9: =SUM(O9-O8) -> 2078.68 | U9: 0.13 | V9: =SUM(T9*U9) -> 270.2284 | W9: VF
B10: Col 5 (POB Open) | C10: 6400 | D10: 2000+'s | E10: 80 2's | F10: 3388 | G10: 440 | H10: 3200 | I10: =SUM(F10-(H10-H9)) -> 1588 | J10: =SUM(I10/40) -> 39.7 | K10: 6 | L10: 6 | M10: =SUM(L10*K10) -> 36 | N10: =SUM(M10*42.38) -> 1525.68 | O10: =SUM(H10+N11) -> 7014.2 | Q10: =SUM(T11*0.13) -> 432.3384 | S10: Col 4 | T10: =T9 -> 2078.68 | U10: 0.21 | V10: =SUM(T10*U10) -> 436.5228 | W10: SC
F11: Income | G11: =SUM(G8:G10) -> 1540 | K11: =SUM(K8:K10) -> 15 | M11: =SUM(M8:M10) -> 90 | N11: =SUM(N8:N10) -> 3814.2 | P11: =SUM(P8:P10) -> 866.6684113 | Q11: =SUM(Q8:Q10) -> 1594.088411 | S11: Col 5 | T11: =SUM(O10-O9) -> 3325.68 | U11: 0.13 | V11: =SUM(T11*U11) -> 432.3384
A13: Revised 4/8/17 | B13: Col 4 - Plan 3-4 Trios for DD's | T13: =SUM(V6/8) -> 847
B14: Col 5 - Plan 6 Trios for FT-VF | T14: =SUM(T13*2) -> 1694
B15: Col 5 - Plan 6 Trios for VF-PB | T15: =SUM(T14*2) -> 3388
T16: 6776

Sheet Blank
S1: Original | T1: PVC | U1: Add to Column | V1: Column | W1: End Result
B2: 2017 | H2: 6-4-5 Income Calculator | S2: Col 6 | T2: =H8 -> 0 | U2: =N8 -> 0 | V2: Col 6 | W2: =SUM(T2:U2) -> 0
H3: Conference to Conference Planning | S3: Col 4 | T3: =H9 -> 0 | U3: =SUM(N8:N9) -> 0 | V3: Col 4 | W3: =SUM(T3:U3) -> 0
H4: Name: | S4: Col 5 | T4: =H10 -> 0 | U4: =SUM(N8:N10) -> 0 | V4: Col5 | W4: 0
A5: Choose View in Order
B6: Maximize your 6-4-5 Income $1,500 | C6: PVC Goal Rounded | F6: PVC Targets | G6: Income Targets | H6: ….. Enter ….. Data | K6: Enter Your Plan | L6: Enter Timeline | O6: ….. PVC … Results | P6: VF Income Results | Q6: SC Income Results | S6: Trios | T6: 169.5 | U6: =SUM(T6/4) -> 42.375 | V6: 6776 | W6: 160 Trios
B7: Columns 6 4 5 | C7: Col 6-4-5 | D7: PC D DD VF | E7: A's, 1's, 2's | F7: A, 1, 2 | H7: Current Month Col 6-4-5 PVC | I7: PVC Needed | J7: Trios Needed | K7: Trios Per Month | L7: # of Months | M7: Resulting Trio Plan | N7: Resulting PVC | O7: Col 6-4-5 | P7: 6-4-5 Income | Q7: 6-4-5 Income | S7: =SUM(T7/42.3) -> 0 | T7: =SUM(H8+N8) -> 0 | U7: =SUM(T7*0.14) -> 0 | V7: =SUM(S7*9.75) -> 0 | W7: =SUM(U7:V7) -> 0 | X7: Col 6 VF
B8: Col 6 (Pers Total) | C8: 1600 | D8: PC's | E8: 40 A's | F8: 1694 | G8: 750 | I8: =SUM(F8-H8) -> 1694 | J8: =SUM(I8/40) -> 42.35 | M8: =SUM(L8*K8) -> 0 | N8: =SUM(M8*42.38) -> 0 | O8: =SUM(H8+N8) -> 0 | P8: =SUM(U7:V7) -> 0 | Q8: =SUM(U8:V8) -> 0 | S8: =S7 -> 0 | T8: =T7 -> 0 | U8: =SUM(T8*0.22) -> 0 | V8: =SUM(S8*9.75) -> 0 | W8: =SUM(U8:V8) -> 0 | X8: Col 6 SC
B9: Col 4 (PB) | C9: 3200 | D9: HLP's | E9: 40 1's | F9: 1694 | G9: 350 | I9: =SUM(F9-(H9-H8)) -> 1694 | J9: =SUM(I9/40) -> 42.35 | M9: =SUM(L9*K9) -> 0 | N9: =SUM(M9*42.38) -> 0 | O9: =SUM(H9+N8+N9) -> 0 | P9: =SUM(T9*0.13) -> 0 | Q9: =SUM(T9*0.21) -> 0 | S9: Col 4 | T9: =SUM(O9-O8) -> 0 | U9: 0.13 | V9: =SUM(T9*U9) -> 0 | W9: VF
B10: Col 5 (POB Open) | C10: 6400 | D10: 2000+'s | E10: 80 2's | F10: 3388 | G10: 440 | I10: =SUM(F10-(H10-H9)) -> 3388 | J10: =SUM(I10/40) -> 84.7 | M10: =SUM(L10*K10) -> 0 | N10: =SUM(M10*42.38) -> 0 | O10: =SUM(H10+N11) -> 0 | Q10: =SUM(T11*0.13) -> 0 | S10: Col 4 | T10: =T9 -> 0 | U10: 0.21 | V10: =SUM(T10*U10) -> 0 | W10: SC
F11: Income | G11: =SUM(G8:G10) -> 1540 | K11: =SUM(K8:K10) -> 0 | M11: =SUM(M8:M10) -> 0 | N11: =SUM(N8:N10) -> 0 | P11: =SUM(P8:P10) -> 0 | Q11: =SUM(Q8:Q10) -> 0 | S11: Col 5 | T11: =SUM(O10-O9) -> 0 | U11: 0.13 | V11: =SUM(T11*U11) -> 0
A13: Revised 4/8/17 | B13: Col 4 - Plan 3-4 Trios for DD's | T13: =SUM(V6/8) -> 847
B14: Col 5 - Plan 6 Trios for FT-VF | T14: =SUM(T13*2) -> 1694
B15: Col 5 - Plan 6 Trios for VF-PB | T15: =SUM(T14*2) -> 3388
T16: 6776

Sheet 12 Mo Sample
B2: Name | D2: 2016-04-15 | E2: 2016-05-15 | F2: 2016-06-15 | G2: 2016-07-15 | H2: 2016-08-15 | I2: 2016-09-15 | J2: 2016-10-15 | K2: 2016-11-15 | L2: 2016-12-15 | M2: 2016-01-16 | N2: 2016-02-16 | O2: 2016-03-16 | P2: Total | Q2: Average
B3: Paycheck | C3: Month-end Payout | D3: 217 | E3: 324 | F3: 251 | G3: 209 | H3: 223 | I3: 444 | J3: 254 | K3: 302 | L3: 209 | M3: 259 | N3: 176 | O3: 386 | P3: 3255 | Q3: 271
C4: RSP | D4: 129 | E4: 213 | F4: 181 | G4: 130 | H4: 148 | I4: 330 | J4: 157 | K4: 187 | L4: 114 | M4: 162 | N4: 169 | O4: 250 | P4: 2169 | Q4: 181
B5: Earnings | C5: Commissions | D5: 110 | E5: 141 | F5: 108 | G5: 107 | H5: 98 | I5: 132 | J5: 114 | K5: 143 | L5: 113 | M5: 116 | N5: 112 | O5: 153 | P5: 1445 | Q5: 120
C6: PB | D6: 0 | E6: 0 | F6: 0 | G6: 0 | H6: 0 | I6: 0 | J6: 0 | K6: 0 | L6: 0 | M6: 0 | N6: 0 | O6: 0 | P6: 0 | Q6: 0
C7: POB | D7: 0 | E7: 0 | F7: 0 | G7: 0 | H7: 0 | I7: 0 | J7: 0 | K7: 0 | L7: 0 | M7: 0 | N7: 0 | O7: 0 | P7: 0 | Q7: 0
C9: Pers(New Cust) | D9: 97 | E9: 152 | F9: 58 | G9: 34 | H9: 73 | I9: 128 | J9: 42 | K9: 239 | L9: 35 | M9: 35 | N9: 53 | O9: 329 | P9: 1275 | Q9: 106
B10: Col 6 | C10: Pers(Total) | D10: 782 | E10: 1007 | F10: 770 | G10: 761 | H10: 698 | I10: 946 | J10: 839 | K10: 1051 | L10: 834 | M10: 854 | N10: 798 | O10: 1090 | P10: 10432 | Q10: 869 | S10: Col 6 | T10: 1090
C11: Pers & DLRs | D11: 782 | E11: 1007 | F11: 770 | G11: 761 | H11: 698 | I11: 946 | J11: 839 | K11: 1051 | L11: 834 | M11: 854 | N11: 798 | O11: 1090 | P11: 10432 | Q11: 869 | S11: Col 4 | T11: 1090
B12: Col 4 | C12: PBQ | D12: 782 | E12: 1007 | F12: 770 | G12: 761 | H12: 698 | I12: 946 | J12: 839 | K12: 1051 | L12: 834 | M12: 854 | N12: 798 | O12: 1090 | P12: 10432 | Q12: 869 | S12: Col 5 | T12: 1090
B13: Col 5 | C13: POBQ (OPEN) | D13: 0 | E13: 0 | F13: 0 | G13: 0 | H13: 0 | I13: 0 | J13: 0 | K13: 0 | L13: 0 | M13: 0 | N13: 0 | O13: 1090 | P13: 0 | Q13: 0
C14: PB1 | D14: 0 | E14: 0 | F14: 0 | G14: 0 | H14: 0 | I14: 0 | J14: 0 | K14: 0 | L14: 0 | M14: 0 | N14: 0 | O14: 0 | P14: 0 | Q14: 0
B15: Volume | D15: 0 | E15: 0 | F15: 0 | G15: 0 | H15: 0 | I15: 0 | J15: 0 | K15: 0 | L15: 0 | M15: 0 | N15: 0 | O15: 0
C16: PB2 | D16: 0 | E16: 0 | F16: 0 | G16: 0 | H16: 0 | I16: 0 | J16: 0 | K16: 0 | L16: 0 | M16: 0 | N16: 0 | O16: 0 | P16: 0 | Q16: 0
C17: PB3 | D17: 0 | E17: 0 | F17: 0 | G17: 0 | H17: 0 | I17: 0 | J17: 0 | K17: 0 | L17: 0 | M17: 0 | N17: 0 | O17: 0 | P17: 0 | Q17: 0
C18: PB4 | D18: 0 | E18: 0 | F18: 0 | G18: 0 | H18: 0 | I18: 0 | J18: 0 | K18: 0 | L18: 0 | M18: 0 | N18: 0 | O18: 0 | P18: 0 | Q18: 0
C19: PB5 | D19: 0 | E19: 0 | F19: 0 | G19: 0 | H19: 0 | I19: 0 | J19: 0 | K19: 0 | L19: 0 | M19: 0 | N19: 0 | O19: 0 | P19: 0 | Q19: 0
B20: Payline | C20: Payline | D20: 782 | E20: 1007 | F20: 770 | G20: 761 | H20: 698 | I20: 946 | J20: 811 | K20: 1024 | L20: 806 | M20: 827 | N20: 798 | O20: 1090 | P20: 10321 | Q20: 860
C22: PB Legs | D22: 0 | E22: 0 | F22: 0 | G22: 0 | H22: 0 | I22: 0 | J22: 0 | K22: 0 | L22: 0 | M22: 0 | N22: 0 | O22: 0 | P22: 0
B23: Structure | C23: POB Legs | D23: 0 | E23: 0 | F23: 0 | G23: 0 | H23: 0 | I23: 0 | J23: 0 | K23: 0 | L23: 0 | M23: 0 | N23: 0 | O23: 0 | P23: 0
C24: Leg Balance%(top3)

Sheet 6-4-5 12 Mo Sample
B2: Name | C2: Month | F2: 2017-04-16 | G2: 2017-05-16 | H2: 2017-06-16 | I2: 2017-07-16 | J2: 2017-08-16 | K2: 2017-09-16 | L2: 2017-10-16 | M2: 2017-11-16 | N2: 2017-12-16 | O2: 2017-01-17 | P2: 2017-02-17 | Q2: 2017-03-17
C3: Month Payout | E3: Month-end Payout | F3: 952 | G3: 692 | H3: 655 | I3: 890 | J3: 783 | K3: 888 | L3: 828 | M3: 1302 | N3: 1248 | O3: 1223 | P3: 1296 | Q3: 1535 | R3: =Q3 -> 1535 | S3: Check
C4: Supp Payout | E4: Supp Payout | F4: 0 | G4: 0 | H4: 0 | I4: 0 | J4: 0 | K4: 250 | L4: 0 | M4: 0 | N4: 0 | O4: 0 | P4: 0 | Q4: 0
C5: RSP | E5: RSP | F5: 454 | G5: 281 | H5: 184 | I5: 228 | J5: 280 | K5: 377 | L5: 231 | M5: 518 | N5: 344 | O5: 423 | P5: 371 | Q5: 485
B6: Earnings | C6: Commissions | D6: Earnings | E6: Commissions | F6: 456 | G6: 445 | H6: 488 | I6: 600 | J6: 497 | K6: 487 | L6: 538 | M6: 731 | N6: 801 | O6: 735 | P6: 819 | Q6: 953
C7: PB | E7: PB | F7: 106 | G7: 96 | H7: 105 | I7: 138 | J7: 133 | K7: 106 | L7: 140 | M7: 184 | N7: 183 | O7: 161 | P7: 182 | Q7: 214
C8: POB | E8: POB | F8: 5 | G8: 8 | H8: 4 | I8: 9 | J8: 6 | K8: 9 | L8: 6 | M8: 11 | N8: 5 | O8: 10 | P8: 10 | Q8: 12
C9: Bonus | E9: Bonus | F9: 0 | G9: 0 | H9: 0 | I9: 0 | J9: 0 | K9: 250 | L9: 0 | M9: 0 | N9: 0 | O9: 0 | P9: 0 | Q9: 0
C11: New Cust) | E11: Pers(New Cust) | F11: 350 | G11: 172 | H11: 0 | I11: 126 | J11: 178 | K11: 76 | L11: 82 | M11: 181 | N11: 37 | O11: 206 | P11: 252 | Q11: 220
B12: Col 6 | C12: Pers(Total) | E12: Pers(Total) | F12: 1071 | G12: 1203 | H12: 1163 | I12: 1380 | J12: 972 | K12: 1181 | L12: 939 | M12: 1394 | N12: 1440 | O12: 1541 | P12: 1773 | Q12: 1752 | R12: 1752 | S12: Col 6
C13: Pers & DLRs | E13: Pers & DLRs | F13: 1309 | G13: 1377 | H13: 1465 | I13: 1779 | J13: 1295 | K13: 1470 | L13: 1394 | M13: 2026 | N13: 2277 | O13: 2165 | P13: 2281 | Q13: 2719
B14: Col 4 | C14: PBQ | E14: PBQ | F14: 1376 | G14: 1404 | H14: 1505 | I14: 1820 | J14: 1378 | K14: 1553 | L14: 1662 | M14: 2169 | N14: 2447 | O14: 2377 | P14: 2804 | Q14: 3117 | R14: 3117 | S14: Col 4
B15: Col 5 | C15: POBQ(OPEN) | E15: POBQ(OPEN) | F15: 3571 | G15: 3103 | H15: 3459 | I15: 4308 | J15: 3802 | K15: 3368 | L15: 4107 | M15: 5527 | N15: 5806 | O15: 5140 | P15: 5687 | Q15: 6698 | R15: 6698 | S15: Col 5
C16: PB1 | D16: Volume | E16: PB1 | F16: 1690 | G16: 1799 | H16: 1880 | I16: 2031 | J16: 2205 | K16: 1873 | L16: 1850 | M16: 3101 | N16: 3090 | O16: 2831 | P16: 3138 | Q16: 3468
C17: PB2 | E17: PB2 | F17: 434 | G17: 127 | H17: 212 | I17: 728 | J17: 452 | K17: 238 | L17: 955 | M17: 577 | N17: 561 | O17: 392 | P17: 508 | Q17: 803
B18: Volume | C18: PB3 | E18: PB3 | F18: 0 | G18: 0 | H18: 0 | I18: 0 | J18: 0 | K18: 0 | L18: 0 | M18: 0 | N18: 0 | O18: 0 | P18: 0 | Q18: 0
C19: PB4 | E19: PB4 | F19: 0 | G19: 0 | H19: 0 | I19: 0 | J19: 0 | K19: 0 | L19: 0 | M19: 0 | N19: 0 | O19: 0 | P19: 0 | Q19: 0
C20: PB5 | E20: PB5 | F20: 0 | G20: 0 | H20: 0 | I20: 0 | J20: 0 | K20: 0 | L20: 0 | M20: 0 | N20: 0 | O20: 0 | P20: 0 | Q20: 0
B21: Payline | C21: Payline | E21: Payline | F21: 3500 | G21: 3330 | H21: 3596 | I21: 4578 | J21: 4036 | K21: 3664 | L21: 4240 | M21: 5745 | N21: 5996 | O21: 5455 | P21: 5969 | Q21: 7058 | R21: 7058 | S21: Payline
C23: PB Legs | E23: PB Legs | F23: 1 | G23: 1 | H23: 1 | I23: 1 | J23: 1 | K23: 1 | L23: 2 | M23: 2 | N23: 2 | O23: 2 | P23: 2 | Q23: 2
B24: Structure | C24: POB Legs | D24: Structure | E24: POB Legs | F24: 0 | G24: 0 | H24: 0 | I24: 0 | J24: 0 | K24: 0 | L24: 0 | M24: 0 | N24: 0 | O24: 0 | P24: 0 | Q24: 0
C25: PB Qualifiers | E25: PB Qualifiers | F25: 1 | G25: 1 | H25: 1 | I25: 1 | J25: 1 | K25: 1 | L25: 2 | M25: 2 | N25: 2 | O25: 2 | P25: 2 | Q25: 2
C26: POB Qualifiers
C27: Leg Balance%(top3) | E27: Leg Balance%(top3) | F27: 47 0 0 | G27: 37 0 0 | H27: 38 0 0 | I27: 40 0 0 | J27: 39 0 0 | K27: 33 0 0 | L27: 29 28 0 | M27: 33 24 0 | N27: 22 20 0 | O27: 23 18 0 | P27: 26 17 0 | Q27: 23 23 0
R29: Conf to Conference - 6 Months
C30: New DLRs | F30: 0 | G30: 0 | H30: 0 | I30: 1 | J30: 1 | K30: 0 | L30: 1 | M30: 0 | N30: 0 | O30: 1 | P30: 0 | Q30: 1 | R30: =SUM(L30:Q30) -> 3 | S30: New Reps
C31: New DDs | D31: Promotions | E31: New DLRs | F31: 0 | G31: 0 | H31: 0 | I31: 1 | J31: 0 | K31: 0 | L31: 0 | M31: 0 | N31: 0 | O31: 1 | P31: 0 | Q31: 2 | R31: =SUM(L31:Q31) -> 3 | S31: HLP's
B32: Promotions | C32: New VFs | E32: New DDs | F32: 0 | G32: 0 | H32: 0 | I32: 0 | J32: 0 | K32: 0 | L32: 1 | M32: 0 | N32: 0 | O32: 0 | P32: 0 | Q32: 0 | R32: =SUM(L32:Q32) -> 1 | S32: 2000+
C33: New SCs | E33: New VFs
C34: New SSC
C35: New QNMD
C36: New NMD
C38: Cntry - % Avg PVC | F38: USA
C39: Qualified Legs | E39: Cntry | F39: 1
C40: PB | E40: % Avg PVC | F40: Mary Joe | G40: 0.2303 | H40: Susie Smith | I40: 0.2329
C41: POB | E41: Qualified Legs

Sheet Color Coded
A1: Name | B1: Month | C1: 2016-04-15 | D1: 2016-05-15 | E1: 2016-06-15 | F1: 2016-07-15 | G1: 2016-08-15 | H1: 2016-09-15 | I1: 2016-10-15 | J1: 2016-11-15 | K1: 2016-12-15 | L1: 2016-01-16 | M1: 2016-02-16 | N1: 2016-03-16 | O1: Total | P1: Average
B2: Month-end Payout
B3: Supp Payout
B4: RSP
A5: Earnings | B5: Commissions
B6: PB
B7: POB
B8: Bonus
B10: New Cust)
A11: Col 6 | B11: Pers(Total)
B12: Pers & DLRs
A13: Col 4 | B13: PBQ
A14: Col 5 | B14: POBQ(OPEN)
A15: Volume | B15: PB1
B16: PB2
B17: PB3
B18: PB4
B19: PB5
B20: Payline
B22: PB Legs
A23: Structure | B23: POB Legs
B24: PB Qualifiers
B25: POB Qualifiers
B26: Leg Balance%(top3)
A28: Promotions | B28: New DLRs
B29: New DDs
B30: New VFs
B31: New SCs
B32: New SSC
B33: New QNMD
B34: New NMD
B36: Cntry
B37: % Avg PVC
B38: Qualified Legs
B39: PB
B40: POB

Sheet Cust Qualified Calculator
C2: Customer Qualified with over 1,000
C4: Position | D4: Enter # of Trios | E4: PVC | F4: Residual Income
C5: VF | D5: 24 | E5: =SUM(D5*42.37) -> 1016.88 | F5: =SUM((E5*0.14)+(D5*9.75)) -> 376.3632
C6: SC | D6: 24 | E6: =SUM(D6*42.37) -> 1016.88 | F6: =SUM((E6*0.22)+(D6*9.75)) -> 457.7136
C9: Customer Qualified with over 1,600
C11: Position | D11: Enter # of Trios | E11: PVC | F11: Residual Income
C12: VF | D12: 40 | E12: =SUM(D12*42.37) -> 1694.8 | F12: =SUM((E12*0.14)+(D12*9.75)) -> 627.272
C13: SC | D13: 40 | E13: =SUM(D13*42.37) -> 1694.8 | F13: =SUM((E13*0.22)+(D13*9.75)) -> 762.856

Sheet Income Estimator
B1: Simple, Fun and Financially Rewarding
E2: 6-4-5 Residual Income
E3: ABC Easy as 123
C5: A: Customers | G5: B: Level 1 | K5: B: Level 2 | O5: B: Level 3
B11: 40 Trio Customers | F11: 40 Trio Customers from | J11: 80 Trio Customers from | N11: Total SC Income from
B12: Your Personal Customers | F12: Dealers & Direct Distributors | J12: Virtual Franchisees | N12: PC, DLR/ DD & VF's
B13: 1,600 PVC | F13: 1,600 PVC | J13: 3,200 PVC | N13: (A, B1 & B2)
B16: Strong Customer Base | D16: 40 | E16: ✚ | F16: 10 HLP's w/ 4 Trios | H16: 40 | I16: ✚ | J16: 4 VF's w/ 20 Trios | L16: 80 | M16: = | N16: Residual Monthly Income
B17: Customer Orders | D17: 40 | F17: DLR's & DD Orders | H17: 40 | J17: Your VF's Orders | L17: 80 | N17: Rounded PVC | P17: Income from
B18: Monthly Trio PVC | D18: 42.35 | F18: Monthly Trio PVC | H18: 42.35 | J18: Monthly Trio PVC | L18: 42.35 | N18: Cumulative Column Total | P18: A, B1, B2
B19: Posted PVC | D19: =SUM(D17*D18) -> 1694 | F19: Posted PVC | H19: =SUM(H17*H18) -> 1694 | J19: Posted PVC | L19: =SUM(L17*L18) -> 3388 | N19: Col 6 (PC) | O19: 1600 | P19: =D22 -> 762.68
B20: Rate | C20: 0.22 | D20: =SUM(D19*C20) -> 372.68 | F20: Rate | H20: 0.21 | J20: Rate | L20: 0.13 | N20: Col 4 (PB) | O20: 3200 | P20: =H22 -> 355.74
B21: Retail Profit | C21: =SUM(39/4) -> 9.75 | D21: =SUM(D17*C21) -> 390 | F21: Col 4 Dist's | H21: =SUM(H19*H20) -> 355.74 | I21: ✚ | J21: Col 5 VF's | L21: =SUM(L19*L20) -> 440.44 | N21: Col 5 (POB) | O21: 6400 | P21: =L22 -> 440.44
B22: Col 6 Customers | D22: =SUM(D20:D21) -> 762.68 | F22: Col 4 DLR & DD | H22: =SUM(H21) -> 355.74 | I22: ✚ | J22: Col 5 VF | L22: =SUM(L21) -> 440.44 | M22: = | N22: Total 6-4-5 Income | P22: =SUM(P19:P21) -> 1558.86
B24: Rounded | D24: 750 | E24: ✚ | F24: ✚ | I24: Rounded | J24: 750 | M24: = | N24: Rounded | P24: 1500

Sheet Picture Income Est (hidden)
